bitfinex-derivatives/quotes_ETHF0:USTF0_20250929
["timestamp","ask_amount","ask_price","bid_price","bid_amount"]
[1759108661812,1.18926,4137.4,4137.3,3.2078]
[1759108663610,41.98926,4137.4,4137.3,3.2078]
[1759108664910,42.23726,4137.4,4137.3,3.2078]
[1759108667013,1.3125,4137.0,4136.8,4.07184558]
[1759108667215,0.7544,4136.9,4136.8,3.4198]
[1759108669716,0.7544,4136.9,4136.8,3.957]
[1759108671221,0.4349,4137.0,4136.8,3.957]
[1759108671417,0.43488,4137.2,4137.1,0.7492]
[1759108672320,0.248,4137.3,4137.2,0.3179]
[1759108672515,0.248,4137.3,4137.2,0.7492]
[1759108672715,0.68287,4137.3,4137.2,0.7492]
[1759108673619,1.43727,4137.3,4137.2,0.4313]
[1759108673822,0.64961,4136.9,4136.8,4.1935]
[1759108674015,1.17281,4136.9,4136.8,4.1935]
[1759108674417,1.17281,4136.9,4136.8,3.9455]
[1759108675425,1.17281,4136.9,4136.8,3.6252]
[1759108678518,1.17281,4136.9,4136.8,3.4194]
[1759108680127,1.17281,4136.9,4136.8,0.2116]
[1759108680327,1.17281,4136.9,4136.7,0.00219517]
[1759108680920,1.17281,4136.9,4136.8,0.2116]
[1759108681427,41.97281,4136.9,4136.8,0.2116]
[1759108682615,41.97281,4136.9,4136.7,0.00219517]
[1759108683521,42.98264574,4136.9,4136.7,0.00219517]
[1759108685628,1.17291,4135.9,4135.8,3.4194]
[1759108685817,0.43504,4135.6,4135.5,0.3203]
[1759108686023,1.41994,4135.6,4135.5,0.7377]
[1759108686430,1.41994,4135.6,4135.5,0.4174]
[1759108686630,1.42214066,4135.6,4135.5,0.74003506]
[1759108687128,0.98710066,4135.6,4135.5,0.74003506]
[1759108687727,0.00220066,4135.6,4135.5,1.8750708]
[1759108688027,0.43497,4136.4,4136.3,0.7377]
[1759108688224,0.247,4136.4,4136.3,0.7377]
[1759108688427,41.047,4136.4,4136.3,0.7377]
[1759108688826,0.43489,4137.1,4136.8,0.7377]
[1759108689019,0.43489,4137.1,4137.0,0.8629]
[1759108689020,0.43730362,4137.1,4137.0,0.8629]
[1759108689225,0.68430362,4137.1,4137.0,0.8629]
[1759108689424,0.24941362,4137.1,4137.0,0.8629]
[1759108690625,0.24941362,4137.1,4137.0,4.0707]
[1759108690826,0.00241362,4137.1,4137.0,4.0707]
[1759108691129,3.96181,4137.9,4137.6,0.43483]
[1759108691327,3.64261,4137.9,4137.8,0.4174]
[1759108691628,45.22351,4137.9,4137.8,0.7377]
[1759108691936,0.43485,4137.5,4137.2,0.3265]
[1759108692125,1.18268,4137.2,4137.1,0.2067]
[1759108692328,0.9869,4137.0,4136.9,0.2067]
[1759108692533,1.2339,4137.0,4136.9,0.2067]
[1759108692723,1.2339,4137.0,4136.5,3.6595]
[1759108692724,0.43492,4136.8,4136.5,4.40009324]
[1759108692929,1.18274,4136.6,4136.5,3.2078]
[1759108693126,0.7478,4136.6,4136.5,3.6211]
[1759108693330,0.7478,4136.6,4136.5,0.4133]
[1759108693633,0.2062,4136.2,4136.1,0.7398]
[1759108693825,0.7815,4136.2,4136.1,0.7398]
[1759108694230,0.9948,4136.2,4136.1,0.4133]
[1759108694630,0.8803,4136.0,4135.9,3.2078]
[1759108694937,1.18283,4135.7,4135.6,0.2067]
[1759108695134,1.42983,4135.7,4135.6,0.2067]
[1759108695331,1.42983,4135.7,4135.5,0.00233506]
[1759108696034,0.8914377,4135.6,4135.5,0.00233506]
[1759108696238,1.2197377,4135.6,4135.5,0.00233506]
[1759108696426,0.5345,4134.6,4134.5,0.7398]
[1759108696827,0.248,4134.7,4134.5,0.7398]
[1759108697037,41.5478,4135.6,4135.5,0.4133]
[1759108697239,42.26761254,4135.6,4135.5,0.7398]
[1759108697535,42.27037384,4135.6,4135.5,0.20893398]
[1759108698136,42.27037384,4135.6,4135.5,0.00223398]
[1759108698435,47.27037384,4135.6,4135.5,0.00223398]
[1759108698825,0.56756,4135.5,4134.5,3.2078]
[1759108699029,1.18295,4134.6,4134.5,3.4145]
[1759108699224,0.1325,4135.0,4134.5,3.6211]
[1759108699430,4.17739,4135.2,4135.1,0.7398]
[1759108699636,4.42539,4135.2,4135.1,0.7398]
[1759108699837,4.63869,4135.2,4135.1,0.41613389]
[1759108700336,4.63869,4135.2,4135.1,0.00283389]
[1759108705142,4.63529,4135.2,4135.1,0.20953389]
[1759108705829,4.63529,4135.2,4135.1,0.00283389]
[1759108706833,4.63529,4135.2,4134.5,3.2078]
[1759108706834,0.43515,4134.6,4134.5,3.2078]
[1759108707133,1.40875,4134.6,4134.5,3.2078]
[1759108707529,1.28991,4134.0,4133.9,3.2078]
[1759108707832,1.53791,4134.0,4133.9,3.2078]
[1759108708026,1.53791,4134.0,4133.9,3.21045785]
[1759108708432,1.53791,4134.0,4133.9,0.00265785]
[1759108709034,42.33791,4134.0,4133.9,0.00265785]
[1759108709337,41.9027,4134.0,4133.9,0.22475785]
[1759108710945,0.95089,4134.3,4134.2,0.4411]
[1759108711127,1.40879,4134.3,4134.2,0.4411]
[1759108711439,42.20879,4134.3,4134.2,0.4411]
[1759108711640,42.20879,4134.3,4134.0,0.43521]
[1759108711641,0.43521,4134.1,4134.0,0.2221]
[1759108711843,1.10231,4134.1,4134.0,0.2221]
[1759108712338,0.248,4134.1,4134.0,0.7643]
[1759108713434,3.2078,4134.6,4134.5,0.4411]
[1759108713637,0.248,4134.6,4134.5,1.32716]
[1759108714138,40.8,4134.9,4134.8,0.43513]
[1759108714334,0.43506,4135.5,4135.3,0.43507]
[1759108714539,0.5157,4135.5,4135.4,0.7643]
[1759108714729,0.7637,4135.5,4135.4,0.7643]
[1759108715330,0.7256,4135.2,4134.7,3.2078]
[1759108715535,0.8547,4135.0,4134.9,0.65721]
[1759108715845,0.248,4135.1,4134.9,1.19941]
[1759108716035,0.248,4135.1,4135.0,0.7643]
[1759108716742,0.9736,4135.1,4135.0,0.7643]
[1759108717242,0.7256,4135.1,4135.0,0.7643]
[1759108717441,0.9736,4135.1,4135.0,0.7643]
[1759108717738,0.0027613,4135.6,4135.0,0.7643]
[1759108717944,0.3065,4135.4,4135.3,0.219]
[1759108718244,0.5157,4135.4,4135.3,0.87618]
[1759108718641,0.7256,4135.4,4135.3,0.4411]
[1759108718840,0.7256,4134.8,4134.7,3.4299]
[1759108719032,0.9736,4134.8,4134.7,3.4299]
[1759108720938,0.9736,4134.8,4133.9,0.00265785]
[1759108720939,1.28991,4134.0,4133.9,0.00265785]
[1759108721142,1.53791,4134.0,4133.9,0.00265785]
[1759108721333,7.01367342,4134.0,4133.9,0.00265785]
[1759108721537,1.16089,4133.3,4133.2,3.2078]
[1759108721743,1.29002,4133.0,4132.7,3.2078]
[1759108721936,1.53802,4133.0,4132.7,3.2078]
[1759108722343,42.33802,4133.0,4132.7,3.2078]
[1759108722643,42.33802,4133.0,4132.9,0.02610032]
[1759108723642,41.9027,4133.0,4132.9,0.46720032]
[1759108723946,0.3065,4133.4,4133.3,0.7643]
[1759108724145,0.7637,4133.4,4133.3,0.7643]
[1759108724444,0.9736,4133.4,4133.3,0.4411]
[1759108724646,0.9736,4133.4,4133.3,0.7643]
[1759108725439,0.43527,4133.5,4133.3,0.7643]
[1759108725646,0.248,4133.4,4133.3,0.7643]
[1759108726546,0.7637,4133.4,4133.2,0.19959]
[1759108726847,0.6448,4133.0,4132.9,0.02610032]
[1759108727147,0.8547,4133.0,4132.9,0.02610032]
[1759108728142,0.1291,4133.0,4132.9,5.02610032]
[1759108728341,0.3065,4133.4,4133.3,0.43529]
[1759108731446,0.5157,4133.4,4133.3,0.43529]
[1759108732450,0.3065,4133.4,4133.3,0.43529]
[1759108733842,0.1291,4133.5,4133.3,5.43529]
[1759108734446,0.4425,4133.5,4133.3,5.43529]
[1759108734647,0.1291,4133.5,4133.3,0.43529]
[1759108734852,0.1291,4134.0,4133.9,0.43522]
[1759108735048,0.1291,4134.0,4133.9,3.64302]
[1759108735450,0.4425,4134.0,4133.9,3.64302]
[1759108735746,1e-05,4134.5,4134.4,0.48897]
[1759108735952,0.3459,4135.5,4135.4,0.1413]
[1759108736251,0.3459,4135.5,4135.4,0.2826]
[1759108736551,0.1247,4135.5,4135.4,0.2826]
[1759108737852,0.3459,4135.5,4135.4,0.2826]
[1759108738050,0.6593,4135.5,4135.4,0.2826]
[1759108738247,0.5639,4135.5,4135.3,3.2078]
[1759108738446,0.7526,4135.4,4135.3,3.2078]
[1759108739143,0.8773,4135.0,4134.9,0.43511]
[1759108739347,0.3134,4134.9,4134.8,3.2078]
[1759108739548,0.7526,4134.9,4134.8,3.2078]
[1759108740346,0.7526,4134.9,4134.2,3.2078]
[1759108740347,0.43519,4134.3,4134.2,3.2078]
[1759108740542,0.7526,4134.3,4134.2,3.2078]
[1759108741552,0.3134,4134.3,4134.2,3.2078]
[1759108742447,0.4381,4134.5,4134.3,0.43518]
[1759108742652,0.4381,4135.0,4134.7,0.43513]
[1759108742959,0.3134,4134.9,4134.8,0.43513]
[1759108743643,0.1247,4135.0,4134.2,2.5451]
[1759108743848,0.3134,4134.3,4134.2,2.5451]
[1759108744854,0.1247,4134.0,4133.9,0.43522]
[1759108745048,0.4381,4134.0,4133.9,0.43522]
[1759108745248,0.1247,4134.0,4133.6,3.4568]
[1759108745454,0.55992,4134.0,4133.8,0.43523]
[1759108745747,0.3134,4133.9,4133.8,0.43523]
[1759108745947,0.3134,4133.7,4133.6,3.2078]
[1759108748757,0.5346,4133.7,4133.6,3.2078]
[1759108749757,0.7526,4133.7,4133.6,3.2078]
[1759108752260,0.3218,4133.6,4133.5,0.43526]
[1759108752462,0.7562,4133.6,4133.5,0.43526]
[1759108752852,0.215,4133.2,4133.1,3.4558]
[1759108753154,0.5368,4133.2,4133.1,3.4558]
[1759108754355,0.5368,4133.2,4133.1,3.89111]
[1759108755456,0.7562,4133.2,4133.1,3.2078]
[1759108755664,0.8821,4133.0,4132.8,0.43534]
[1759108755961,0.8821,4133.0,4132.8,0.68334]
[1759108756159,0.8821,4133.0,4132.8,0.43534]
[1759108756757,0.8821,4133.0,4132.7,0.248]
[1759108756953,0.8821,4133.0,4132.7,0.68335]
[1759108757255,0.8821,4133.0,4132.5,3.2078]
[1759108757462,0.8821,4132.5,4132.4,0.0631001]
[1759108757649,2.00354,4132.5,4131.5,4.50386837]
[1759108757859,0.5368,4131.6,4131.5,3.2078]
[1759108758057,0.5368,4131.6,4131.5,3.89127]
[1759108758255,0.3218,4131.6,4131.5,3.89127]
[1759108758561,0.32487453,4131.6,4131.5,3.89381073]
[1759108761557,0.75927453,4131.6,4131.5,0.00254073]
[1759108764362,0.32487453,4131.6,4131.5,0.00254073]
[1759108764764,0.53987453,4131.6,4131.5,0.00254073]
[1759108765068,0.74697453,4131.6,4131.5,0.00254073]
[1759108773871,0.74697453,4131.6,4130.5,3.2078]
[1759108774068,0.8847,4131.0,4130.9,0.43554]
[1759108774869,0.8847,4131.0,4130.9,0.43764]
[1759108775070,0.8847,4131.0,4130.9,0.44065115]
[1759108775969,0.8847,4131.0,4130.9,0.44225115]
[1759108776474,0.8847,4131.0,4130.9,0.44065115]
[1759108776878,0.8847,4131.0,4130.9,0.43855115]
[1759108777378,0.8847,4131.0,4130.9,0.00301115]
[1759108779281,0.5465,4131.0,4130.5,3.2078]
[1759108779580,1.19586,4130.6,4130.5,3.2078]
[1759108779879,0.7603,4130.4,4130.3,0.43559]
[1759108780269,0.7603,4130.4,4130.3,0.43871567]
[1759108781877,0.7603,4130.4,4130.3,0.44561567]
[1759108782781,0.7603,4130.4,4130.3,0.45201567]
[1759108784876,0.7603,4130.4,4130.3,0.44561567]
[1759108785082,0.7603,4130.4,4130.3,0.43871567]
[1759108786980,0.3382,4130.7,4130.6,0.44887]
[1759108787385,0.5532,4130.7,4130.6,0.44887]
[1759108788276,0.7603,4130.7,4130.6,0.44887]
[1759108788779,0.1244,4130.5,4130.3,0.00312567]
[1759108788974,0.7603,4130.4,4130.3,0.43872567]
[1759108795085,0.7603,4130.4,4130.3,0.45502567]
[1759108795288,0.3382,4130.4,4130.3,0.46092567]
[1759108795586,0.1244,4130.5,4130.4,0.0247]
[1759108795788,0.4642,4130.5,4130.4,0.0188]
[1759108795987,0.4642,4130.5,4130.4,0.0094]
[1759108795988,0.8997,4130.5,4130.4,0.0094]
[1759108797096,0.8997,4130.5,4130.4,0.0188]
[1759108798090,0.8997,4130.5,4130.4,0.2658]
[1759108799980,0.4642,4130.5,4130.4,0.2658]
[1759108800183,0.4642,4130.5,4130.4,0.2717]
[1759108800489,0.6842,4131.0,4130.9,0.45434]
[1759108800687,0.5599,4131.0,4130.7,0.247]
[1759108800880,0.4355,4130.4,4130.3,1.29919404]
[1759108801089,0.4355,4130.4,4130.0,3.2078]
[1759108801090,0.22,4130.1,4130.0,3.2078]
[1759108801291,0.7753,4130.1,4130.0,3.2078]
[1759108801584,0.7753,4130.1,4129.5,3.64348]
[1759108801585,0.7753,4129.6,4129.5,3.64348]
[1759108801984,0.5598,4129.6,4129.5,3.67228]
[1759108802287,0.3398,4129.6,4129.5,3.9212575]
[1759108802493,0.3398,4129.6,4129.5,3.9302575]
[1759108802792,0.1337,4130.0,4129.9,0.43564]
[1759108803088,0.1337,4130.0,4129.9,0.46444]
[1759108803089,0.3537,4130.0,4129.9,0.46444]
[1759108803393,0.909,4130.0,4129.9,0.46444]
[1759108804891,0.3398,4129.9,4129.7,1.30425711]
[1759108805084,0.3398,4129.7,4129.6,0.43567]
[1759108805289,0.7753,4129.7,4129.6,0.43567]
[1759108805889,0.3398,4129.6,4129.5,3.6454575]
[1759108806088,0.7753,4129.6,4129.5,3.6454575]
[1759108806483,0.7753,4129.6,4129.5,3.2097775]
[1759108808799,0.7753,4129.6,4129.5,3.2241775]
[1759108812703,0.7753,4129.6,4129.5,3.2385775]
[1759108814502,0.7753,4129.6,4129.5,3.2097775]
[1759108814691,0.7753,4129.6,4129.5,3.2387775]
[1759108818704,0.7753,4129.6,4129.5,3.2097775]
[1759108819314,0.7753,4129.6,4129.5,3.2242775]
[1759108820124,0.3398,4129.6,4129.5,3.2387775]
[1759108820310,0.3398,4129.6,4129.5,3.2477775]
[1759108821513,0.3398,4129.6,4129.5,3.4947775]
[1759108822820,0.3398,4129.6,4129.5,3.4857775]
[1759108823020,0.5622,4129.6,4129.5,3.4857775]
[1759108823619,0.3398,4129.6,4129.5,3.4947775]
[1759108823909,0.3398,4129.6,4129.5,4.79903461]
[1759108824111,0.3226,4129.8,4129.7,0.0378]
[1759108824308,0.3226,4129.8,4129.7,0.2848]
[1759108824509,0.7352,4129.8,4129.7,0.0144]
[1759108824706,0.3226,4129.8,4129.7,0.2758]
[1759108824912,0.7352,4129.8,4129.7,0.2614]
[1759108826317,0.7352,4129.8,4129.7,0.2758]
[1759108826517,0.3226,4129.8,4129.7,0.2848]
[1759108826928,0.3226,4129.8,4129.7,0.2758]
[1759108827319,0.3226,4129.8,4129.7,0.2848]
[1759108827520,0.3226,4129.8,4129.7,1.58864478]
[1759108829113,0.3226,4129.8,4129.7,0.2758]
[1759108829513,0.3226,4129.8,4129.7,0.2848]
[1759108830318,0.3226,4129.8,4129.7,0.2758]
[1759108832820,0.7352,4129.7,4129.6,0.247]
[1759108833020,0.7352,4129.7,4129.6,1.30567559]
[1759108833221,1.17087,4129.6,4129.5,0.0019775]
[1759108833820,0.7352,4129.6,4129.5,0.0019775]
[1759108836227,0.5271,4129.6,4129.5,4.49859047]
[1759108836426,0.3226,4129.6,4129.5,4.50759047]
[1759108836732,0.3226,4129.6,4129.5,4.49859047]
[1759108837424,0.3226,4129.9,4129.8,0.0378]
[1759108837625,0.3226,4129.9,4129.8,1.05081297]
[1759108837832,0.3226,4129.9,4129.8,1.04181297]
[1759108838933,0.5271,4129.9,4129.8,1.04181297]
[1759108840127,0.3226,4129.9,4129.8,1.04181297]
[1759108840333,0.3226,4129.9,4129.8,1.05081297]
[1759108841727,0.3226,4130.3,4130.2,0.47341]
[1759108842038,0.1337,4130.5,4130.4,0.47339]
[1759108842236,0.1337,4130.5,4130.4,0.72039]
[1759108842538,3.7349,4130.9,4130.8,0.0288]
[1759108842837,3.7349,4130.9,4130.8,1.47736297]
[1759108843027,0.7352,4130.9,4130.8,1.46296297]
[1759108845534,3.2078,4131.4,4131.3,0.46429]
[1759108845535,0.3226,4131.4,4131.3,0.46429]
[1759108845731,0.3226,4131.4,4131.3,1.73330297]
[1759108845930,0.5271,4131.4,4131.3,1.92080357]
[1759108846236,0.7352,4131.4,4131.3,1.70990297]
[1759108846537,0.3226,4131.4,4131.3,1.72430297]
[1759108846840,0.00307453,4131.6,4131.5,0.47327]
[1759108847037,0.3226,4132.3,4131.9,0.1566]
[1759108847241,0.3226,4132.3,4132.2,1.76161297]
[1759108847732,3.2078,4132.4,4132.3,0.4111]
[1759108847933,0.3226,4132.6,4132.5,0.3132]
[1759108848137,0.32553584,4132.6,4132.5,1.32855275]
[1759108848441,0.53003584,4132.6,4132.5,1.32855275]
[1759108848830,0.32553584,4132.6,4132.5,1.32855275]
[1759108849038,0.32553584,4132.6,4132.5,1.42645275]
[1759108849539,0.00293584,4132.6,4132.5,1.42645275]
[1759108849842,3.8649,4133.5,4133.4,0.59187]
[1759108850139,0.2081,4133.1,4133.0,1.26001297]
[1759108850339,0.7352,4133.1,4133.0,1.26001297]
[1759108850838,0.73710507,4133.1,4133.0,1.26001297]
[1759108851239,0.73710507,4133.1,4133.0,1.69532297]
[1759108851938,0.73710507,4133.1,4133.0,1.85192297]
[1759108853640,0.73710507,4133.1,4133.0,1.60492297]
[1759108853839,0.73710507,4133.1,4133.0,1.85192297]
[1759108854036,0.73710507,4133.1,4133.0,1.60492297]
[1759108854344,0.73710507,4133.1,4133.0,1.85192297]
[1759108855333,0.52900507,4133.1,4133.0,2.00852297]
[1759108855532,0.32450507,4133.1,4133.0,2.00852297]
[1759108855737,0.74710507,4133.1,4133.0,1.85192297]
[1759108855938,0.74710507,4133.1,4133.0,1.41661297]
[1759108856246,0.74710507,4133.1,4133.0,1.57301297]
[1759108859349,0.74710507,4133.1,4133.0,1.32601297]
[1759108859542,0.1235,4133.0,4132.7,4.22081297]
[1759108859747,0.7515,4132.8,4132.7,4.37721297]
[1759108859938,0.7515,4132.8,4132.7,5.05856297]
[1759108860146,0.7515,4132.6,4132.5,0.00233978]
[1759108861146,3.9593,4132.6,4132.5,0.00233978]
[1759108863047,0.7515,4131.4,4131.3,0.43549]
[1759108863441,0.7515,4131.4,4131.3,0.75589]
[1759108863944,0.7515,4131.4,4131.3,0.75800166]
[1759108864343,0.7515,4131.4,4131.3,1.63272645]
[1759108867444,0.7515,4131.4,4131.3,1.47252645]
[1759108868053,0.7515,4131.4,4131.3,1.31232645]
[1759108869160,0.7515,4131.4,4131.3,1.47252645]
[1759108870350,0.1235,4131.5,4131.3,1.47252645]
[1759108870351,0.6638,4132.0,4131.9,0.75583]
[1759108870555,0.875,4132.5,4132.4,0.59558]
[1759108870857,0.875,4132.5,4132.4,0.75578]
[1759108871157,0.875,4132.5,4132.4,1.63050479]
[1759108874652,0.875,4132.5,4132.4,1.31010479]
[1759108875158,0.875,4132.5,4132.4,1.63110479]
[1759108875461,0.875,4132.5,4132.4,0.1605]
[1759108875654,0.875,4132.5,4132.4,1.03522479]
[1759108880364,0.5461,4132.5,4132.3,0.43539]
[1759108880562,0.7388,4132.4,4132.3,0.43539]
[1759108880759,0.7388,4132.4,4132.3,0.59589]
[1759108880966,0.3151,4132.4,4132.3,0.75639]
[1759108881155,0.5244,4132.4,4132.3,0.75639]
[1759108881657,0.5244,4132.4,4132.3,1.63111479]
[1759108881859,0.3151,4132.4,4132.3,1.73141479]
[1759108883161,0.6479,4133.0,4132.9,0.75633]
[1759108883361,0.8623,4133.0,4132.9,1.47055479]
[1759108883660,0.8623,4133.0,4132.3,5.60043423]
[1759108883661,0.7412,4132.8,4132.7,0.43534]
[1759108884564,0.7412,4132.8,4132.7,0.59734]
[1759108886967,0.7412,4132.8,4132.7,0.43534]
[1759108887873,0.4185,4132.4,4132.3,3.64318]
[1759108888062,0.7412,4132.4,4132.3,4.51790479]
[1759108888367,0.7412,4132.4,4132.3,4.67990479]
[1759108888965,0.3352,4132.0,4131.9,1.30417423]
[1759108889165,0.7412,4131.9,4131.8,3.2078]
[1759108890065,0.7412,4131.9,4131.8,3.3698]
[1759108891766,0.7412,4131.9,4131.6,0.87472479]
[1759108891767,0.7412,4131.8,4131.7,0.43545]
[1759108892467,0.209,4131.8,4131.6,1.03672479]
[1759108892662,0.7412,4131.7,4131.6,1.03672479]
[1759108893369,0.7412,4131.4,4131.3,3.20991166]
[1759108894577,0.7412,4131.4,4131.3,4.24663645]
[1759108894873,0.5322,4131.4,4131.3,4.40863645]
[1759108895060,0.3227,4131.4,4131.3,4.50983645]
[1759108895566,0.5322,4131.4,4131.3,4.40863645]
[1759108895763,0.7412,4131.4,4131.3,4.24663645]
[1759108895970,0.7412,4131.4,4131.3,4.08463645]
[1759108896764,0.7412,4131.4,4131.3,4.24663645]
[1759108897062,0.7412,4131.4,4131.3,4.08463645]
[1759108897269,0.7412,4131.4,4131.3,4.24663645]
[1759108897769,0.5322,4131.6,4131.5,0.75947]
[1759108900972,0.7412,4131.6,4131.5,0.75947]
[1759108901977,0.5322,4131.6,4131.5,0.75947]
[1759108902675,3.6562,4132.0,4131.9,0.75943]
[1759108902877,4.0747,4132.0,4131.9,1.63415479]
[1759108904876,4.0747,4132.0,4131.9,1.47215479]
[1759108907976,4.0747,4132.0,4131.9,1.63415479]
[1759108908776,4.0747,4132.0,4131.9,1.47215479]
[1759108909877,4.0747,4132.0,4131.9,1.31015479]
[1759108910075,4.3207,4132.0,4131.9,1.31015479]
[1759108911277,4.3207,4132.0,4131.9,1.47215479]
[1759108912673,4.75612,4132.0,4131.9,1.47215479]
[1759108913181,5.23198637,4132.0,4131.9,1.47215479]
[1759108913380,5.23198637,4132.0,4131.9,1.31015479]
[1759108915479,5.23198637,4132.0,4131.9,0.87472479]
[1759108915673,0.7504,4131.7,4131.6,0.87472479]
[1759108915868,0.9964,4131.7,4131.6,1.31018479]
[1759108916179,0.9964,4131.7,4131.6,1.47028479]
[1759108917175,0.7504,4131.4,4131.3,3.20991166]
[1759108917580,0.3287,4131.7,4131.3,3.63011166]
[1759108917781,3.3335,4132.0,4131.9,0.43543]
[1759108917977,4.47778935,4132.0,4131.9,1.47025479]
[1759108918279,4.80648935,4132.0,4131.9,1.47025479]
[1759108919183,4.13878935,4132.0,4131.9,1.73035479]
[1759108919376,3.6622,4132.0,4131.9,1.73035479]
[1759108919580,0.339,4132.5,4132.4,0.75558]
[1759108919781,0.93139185,4132.5,4132.4,1.73030479]
[1759108920081,0.6677,4132.5,4132.4,1.63030479]
[1759108920885,0.4544,4132.5,4132.4,1.73030479]
[1759108921272,0.3287,4132.5,4132.4,1.73030479]
[1759108921484,0.246,4132.9,4132.4,0.87472479]
[1759108921785,0.7504,4132.4,4132.3,0.87472479]
[1759108921980,0.7504,4132.4,4132.3,1.03482479]
[1759108922180,0.7504,4132.4,4132.3,1.19492479]
[1759108922383,0.542,4132.4,4132.3,1.19492479]
[1759108923390,0.7504,4132.4,4132.3,1.19492479]
[1759108925291,0.7504,4132.4,4132.3,1.03482479]
[1759108926200,0.7504,4132.4,4132.3,0.1601]
[1759108926497,0.7504,4132.4,4132.3,0.3202]
[1759108926997,0.7504,4132.4,4132.3,3.528]
[1759108928190,0.1297,4132.0,4131.9,1.73960423]
[1759108928389,0.4217,4131.9,4131.8,3.2078]
[1759108928688,0.7504,4131.9,4131.8,3.2078]
[1759108929692,0.56513,4132.0,4131.4,1.30417423]
[1759108929693,0.343,4131.5,4131.4,0.43548]
[1759108929895,0.542,4131.4,4131.3,3.20991166]
[1759108930093,0.7504,4131.4,4131.3,0.00211166]
[1759108930396,6.47119457,4131.4,4131.3,0.00211166]
[1759108931896,0.9051,4130.5,4130.3,3.2078]
[1759108932099,0.7774,4130.4,4130.3,3.6434]
[1759108932694,0.551,4130.4,4130.3,3.9706]
[1759108932994,0.551,4130.4,4130.3,3.97354678]
[1759108935908,0.7774,4130.4,4130.3,3.97354678]
[1759108936395,0.7774,4130.4,4130.3,3.21074678]
[1759108939594,0.7774,4130.4,4130.3,3.37434678]
[1759108939794,0.7774,4130.4,4130.3,0.16654678]
[1759108941700,1.0234,4130.4,4130.3,0.00294678]
[1759108944803,0.7774,4130.4,4130.3,0.16694678]
[1759108945007,1.0234,4130.4,4130.3,0.33094678]
[1759108945206,1.0234,4130.4,4130.3,0.16694678]
[1759108946502,0.797,4130.4,4130.3,0.33094678]
[1759108947010,1.0206,4130.4,4130.3,0.33094678]
[1759108947409,1.0206,4130.4,4130.3,0.16694678]
[1759108947605,1.0206,4130.4,4130.3,0.00294678]
[1759108947804,1.0206,4130.4,4130.3,0.16694678]
[1759108953909,0.551,4130.4,4130.3,0.76654678]
[1759108954105,0.7746,4130.4,4130.3,0.76654678]
[1759108955315,0.3257,4130.4,4130.3,0.86904678]
[1759108955511,3.2078,4130.6,4130.5,0.43558]
[1759108955722,0.912,4131.0,4130.9,0.76354]
[1759108955912,1.25713,4131.0,4130.8,1.44733718]
[1759108956113,0.7843,4130.9,4130.8,1.01178718]
[1759108956311,0.7843,4130.9,4130.8,1.17578718]
[1759108956610,0.7843,4130.6,4130.5,0.43557]
[1759108957808,0.7843,4130.6,4130.5,0.59957]
[1759108959312,0.7843,4130.6,4130.5,0.76357]
[1759108959516,3.2078,4131.1,4131.0,0.4305]
[1759108959719,3.4321,4131.1,4131.0,1.33978718]
[1759108959916,3.5442,4131.1,4131.0,1.44228718]
[1759108960117,0.3364,4131.1,4131.0,1.44228718]
[1759108960707,0.1297,4131.5,4131.0,1.44228718]
[1759108960915,0.3364,4131.5,4131.4,1.87776718]
[1759108961311,0.688,4131.5,4131.4,1.77526718]
[1759108961921,0.9116,4131.5,4131.4,1.77526718]
[1759108964826,0.9116,4131.5,4131.4,0.328]
[1759108965122,0.9116,4131.5,4131.1,4.21958718]
[1759108965123,0.7843,4131.2,4131.1,3.2078]
[1759108965318,1.0303,4131.2,4131.1,3.2078]
[1759108965710,0.7843,4130.7,4130.6,3.2078]
[1759108966518,0.7843,4130.7,4130.6,3.3718]
[1759108967421,0.7843,4130.7,4130.6,3.5358]
[1759108968919,0.7843,4130.4,4130.3,0.00294678]
[1759108969125,1.0303,4130.4,4130.3,0.00294678]
[1759108969520,41.8303,4130.4,4130.3,0.00294678]
[1759108972826,42.305696,4130.4,4130.3,0.00294678]
[1759108974935,41.8303,4130.4,4130.3,0.00294678]
[1759108982535,41.8303,4130.4,4130.3,0.43854678]
[1759108982736,41.8303,4130.4,4130.3,0.00294678]
[1759108984236,42.26589,4130.4,4130.3,0.00294678]
[1759108990433,41.5843,4130.4,4130.3,0.00294678]
[1759108990634,0.5824,4130.4,4130.3,0.43324678]
[1759108990839,0.7995,4130.4,4130.3,0.33074678]
[1759108991641,0.5824,4130.4,4130.3,5.43324678]
[1759108992141,1.0075,4130.4,4130.3,5.33074678]
[1759108995839,0.7995,4130.4,4130.3,5.33074678]
[1759108996244,0.5824,4130.4,4130.3,5.43314678]
[1759108996547,0.3115,4131.0,4130.9,0.86574]
[1759108996739,0.3115,4131.0,4130.9,1.74114939]
[1759108996939,0.4401,4131.0,4130.9,1.74114939]
[1759108997434,0.6645,4131.0,4130.9,1.63874939]
[1759108997641,1.3465923,4131.0,4130.9,1.63874939]
[1759108997847,0.8692,4131.0,4130.9,1.63874939]
[1759108998548,0.4401,4131.0,4130.9,1.74114939]
[1759108999449,0.7406,4130.9,4130.8,0.1639]
[1759109000448,0.7406,4130.9,4130.8,0.59945]
[1759109000752,0.7406,4130.6,4130.5,0.43557]
[1759109001653,0.7406,4130.6,4130.5,0.76337]
[1759109003651,0.7406,4130.6,4130.5,0.1639]
[1759109003851,1.33458,4130.5,4130.4,0.87540939]
[1759109005048,2.20998939,4130.5,4130.3,0.00294678]
[1759109005349,1.24361213,4130.4,4130.3,0.00294678]
[1759109005740,42.04361213,4130.4,4130.3,0.00294678]
[1759109006145,1.24361213,4130.4,4130.3,0.00294678]
[1759109006550,42.04361213,4130.4,4130.3,0.00294678]
[1759109007249,42.28961213,4130.4,4130.3,0.00294678]
[1759109008449,42.04361213,4130.4,4130.3,0.16874678]